[Event "Memorial Ukrainian Chess Warriors 2024"]
[Site "Lviv"]
[Date "2024.03.15"]
[Round "6.22"]
[White "Podolskyi, Mykhailo"]
[Black "Tarleva, Vira"]
[Result "1/2-1/2"]
[ECO "D10"]
[WhiteElo "2331"]
[BlackElo "2030"]
[Annotator "TA"]
[PlyCount "99"]
[EventDate "2024.03.06"]
[EventType "swiss"]
[EventCountry "UKR"]
[SourceTitle "playchess.com"]
[Source "ChessBase"]
[SourceQuality "1"]
[TimeControl "600+5"]

{[%evp 13,99,11,17,16,36,6,33,33,32,16,29,53,41,13,14,5,2,0,49,6,4,13,21,25,58,69,68,66,70,54,45,45,49,60,47,44,49,49,106,110,107,113,113,113,113,108,108,108,108,93,106,106,113,113,116,116,116,116,113,112,110,112,110,110,110,78,78,78,147,147,147,147,147,147,147,0,147,59,59,59,302,302,302,302,302,302,302,302]} 1. d4 {[%emt 0:00:02]} d5 {[%emt 0:00:02]} 2. c4 {[%emt 0:00:03]} c6 {[%emt 0:00:05][%cal Bc7c6,Bc6c5][%mdl 32]} 3. e3 {[%emt 0:00:11]} Nf6 {[%emt 0:00:05]} 4. Nc3 {[%emt 0:00:01]} a6 {[%emt 0:00:13]} 5. Qc2 {[%emt 0:00:16]} e6 {[%emt 0:00:05]} 6. Nf3 {[%emt 0:00:07]} c5 {[%emt 0:00:07]} 7. cxd5 {[%emt 0:01:18]} exd5 {[%emt 0:00:12]} 8. Be2 {[%emt 0:00:10]} Nc6 {[%emt 0:00:11]} 9. O-O {[%emt 0:00:22]} cxd4 {[%emt 0:00:48]} 10. Nxd4 {[%emt 0:00:04] White is slightly better.} Nxd4 {[%emt 0:00:29]} 11. exd4 {[%emt 0:00:02]} Be7 {[%emt 0:00:21]} 12. Bf3 {[%emt 0:00:34]} Be6 {[%emt 0:00:08]} 13. Bg5 {[%emt 0:00:22]} O-O {[%emt 0:00:33]} 14. Qb3 {[%emt 0:00:42][%cal Oa1d1]} b5 {[%emt 0:01:54]} 15. Rfd1 {[%emt 0:00:11]} b4 {[%emt 0:00:49]} (15... Rc8 $11) 16. Bxf6 {[%emt 0:00:41]} Bxf6 {[%emt 0:00:42]} 17. Qxb4 {[%emt 0:00:18]} Rb8 {[%emt 0:00:04]} 18. Qa3 {[%emt 0:00:05]} Be7 {[%emt 0:00:10] A strong pair of Bishops.} 19. Qxa6 {[%emt 0:00:15]} Rxb2 {[%emt 0:00:03]} 20. Rab1 {[%emt 0:00:07]} Rb4 {[%emt 0:01:50]} 21. Rxb4 {[%emt 0:01:17]} Bxb4 {[%emt 0:00:01]} 22. Ne2 {[%emt 0:00:07]} Qa8 {[%emt 0:01:09]} 23. Qxa8 {[%emt 0:00:32]} Rxa8 {[%emt 0:00:02]} 24. Nf4 {[%emt 0:00:02]} Rxa2 {[%emt 0:00:10]} 25. Bxd5 {[%emt 0:00:15]} Rd2 {[%emt 0:00:54]} (25... Bg4 $14) 26. Rxd2 $16 {[%emt 0:01:17]} Bxd2 {[%emt 0:00:02]} 27. Nxe6 {[%emt 0:00:01]} fxe6 {[%emt 0:00:02]} 28. Bxe6+ {[%emt 0:00:01][%mdl 4096] Endgame. KB-KB} Kf8 {[%emt 0:00:00]} 29. Kf1 {[%emt 0:00:01]} Bc3 {[%emt 0:00:06]} 30. d5 {[%emt 0:00:02]} Be5 {[%emt 0:00:01]} 31. g3 {[%emt 0:00:04]} g5 {[%emt 0:00:08]} 32. Ke2 {[%emt 0:00:11]} Ke7 {[%emt 0:00:07]} 33. Kf3 {[%emt 0:00:12]} Bd4 {[%emt 0:00:23]} 34. Kg4 {[%emt 0:00:30]} Kf6 {[%emt 0:00:11]} 35. f3 {[%emt 0:00:15]} Bg1 {[%emt 0:00:10]} 36. h3 {[%emt 0:00:05]} Bf2 {[%emt 0:00:24]} 37. f4 {[%emt 0:00:40]} gxf4 {[%emt 0:00:08]} 38. Kxf4 {[%emt 0:00:01]} Bc5 {[%emt 0:00:09]} 39. h4 {[%emt 0:00:23]} Bd6+ {[%emt 0:00:10]} 40. Kf3 {[%emt 0:00:01]} h5 {[%emt 0:00:06]} (40... h6 $142) 41. Bd7 {[%emt 0:00:21]} Ke5 {[%emt 0:00:07] [#]} 42. Bc6 $1 {[%emt 0:00:23]} ({Of course not} 42. Be8 $6 Kxd5 43. g4 (43. Bxh5 Ke6 $11) 43... hxg4+ 44. Kg2 Ke6 $11) 42... Be7 {[%emt 0:00:07]} 43. Bb7 {[%emt 0:00:11]} Bf6 {[%emt 0:00:05]} 44. Bc6 {[%emt 0:00:24]} Be7 {[%emt 0:00:01]} 45. Be8 {[%emt 0:00:11]} (45. g4 $16) 45... Kxd5 $14 {[%emt 0:00:06]} 46. Bxh5 {[%emt 0:00:17]} Bxh4 $2 {[%emt 0:00:01] Black cannot hold the game after this.} 47. gxh4 $18 {[%emt 0:00:01] [#] White wants to mate with Kf4. White has a decisive advantage.} Ke6 {[%emt 0:00:01]} 48. Kf4 {[%emt 0:00:07] White threatens Kg5 and mate.} Kf6 {[%emt 0:00:03]} 49. Bd1 {[%emt 0:00:03]} Kg7 50. Ke4 {[%mdl 32768] Weighted Error Value: White=0.11 (very precise) /Black=0.20 (precise) .  Loses game:     	---       	Black=1      Mistake:       	White=1     	Black=3      Inaccurate:     	White=3     	Black=2      OK:         	White=14    	Black=15     Best:        	White=2     	Black=3      Strong:       	White=1     	---       . An unexpected result.} 1/2-1/2

[Event "Memorial Ukrainian Chess Warriors 2024"]
[Site "Lviv"]
[Date "2024.03.15"]
[Round "6.23"]
[White "Frankiv, Oleksandr"]
[Black "Piddubna, Bozhena"]
[Result "0-1"]
[ECO "C44"]
[WhiteElo "1788"]
[BlackElo "2132"]
[Annotator "ChessBase"]
[PlyCount "76"]
[EventDate "2024.03.06"]
[EventType "swiss"]
[EventCountry "UKR"]
[SourceTitle "playchess.com"]
[Source "ChessBase"]
[SourceQuality "1"]
[TimeControl "600+5"]

1. e4 {[%emt 0:00:02]} e5 {[%emt 0:00:03]} 2. Nf3 {[%emt 0:00:02]} Nc6 {[%emt 0:00:00]} 3. d4 {[%emt 0:00:01]} exd4 {[%emt 0:00:02]} 4. c3 {[%emt 0:00:01]} d5 {[%emt 0:00:54]} 5. exd5 {[%emt 0:00:02]} Qxd5 {[%emt 0:00:06]} 6. cxd4 {[%emt 0:00:02]} Nf6 {[%emt 0:00:22]} 7. Nc3 {[%emt 0:00:02]} Bb4 {[%emt 0:00:02]} 8. Be2 {[%emt 0:00:03]} O-O {[%emt 0:01:04]} 9. O-O {[%emt 0:00:05]} Bxc3 {[%emt 0:00:46]} 10. bxc3 {[%emt 0:00:01]} Bg4 {[%emt 0:00:01]} 11. Rb1 {[%emt 0:01:33]} b6 {[%emt 0:01:19]} 12. Bf4 {[%emt 0:02:22]} Qf5 {[%emt 0:03:37]} 13. Bxc7 {[%emt 0:00:45]} Nd5 {[%emt 0:00:01]} 14. Rb5 {[%emt 0:05:06]} Qd7 {[%emt 0:00:01]} 15. Rxd5 {[%emt 0:01:00]} Qxd5 {[%emt 0:00:06]} 16. c4 {[%emt 0:00:05]} Qd7 {[%emt 0:00:01]} 17. Bg3 {[%emt 0:00:03]} Rac8 {[%emt 0:00:18]} 18. d5 {[%emt 0:00:02]} Bxf3 {[%emt 0:00:31]} 19. Bxf3 {[%emt 0:00:01]} Na5 {[%emt 0:00:04]} 20. Bg4 {[%emt 0:00:06]} f5 {[%emt 0:00:05]} 21. Be2 {[%emt 0:00:12]} Nxc4 {[%emt 0:00:23]} 22. Qd4 {[%emt 0:00:10]} Nd6 {[%emt 0:00:18]} 23. Bd3 {[%emt 0:00:06]} Rc5 {[%emt 0:00:46]} 24. Qe5 {[%emt 0:00:03]} Ne4 {[%emt 0:00:47]} 25. Bf4 {[%emt 0:00:09]} Re8 {[%emt 0:00:22]} 26. Qd4 {[%emt 0:00:04]} Kh8 {[%emt 0:00:08]} 27. Qb2 {[%emt 0:00:06]} Rxd5 {[%emt 0:00:05]} 28. Bc4 {[%emt 0:00:02]} Rc5 {[%emt 0:00:01]} 29. Bb3 {[%emt 0:00:05]} Nc3 {[%emt 0:00:02]} 30. Be3 {[%emt 0:00:07]} Rc7 {[%emt 0:00:02]} 31. h3 {[%emt 0:00:05]} h6 {[%emt 0:00:08]} 32. Kh1 {[%emt 0:00:04]} Kh7 {[%emt 0:00:02]} 33. Rc1 {[%emt 0:00:05]} Ne4 {[%emt 0:00:01]} 34. Rd1 {[%emt 0:00:03]} Qe7 {[%emt 0:00:08]} 35. Qe2 {[%emt 0:00:07]} Nc3 {[%emt 0:00:02]} 36. Qf3 {[%emt 0:00:04]} Nxd1 {[%emt 0:00:03]} 37. Qxf5+ {[%emt 0:00:02]} g6 {[%emt 0:00:01]} 38. Qf4 {[%emt 0:00:04]} Nxe3 {[%emt 0:00:01]} 0-1

[Event "Memorial Ukrainian Chess Warriors 2024"]
[Site "Lviv"]
[Date "2024.03.15"]
[Round "6.25"]
[White "Skarbarchuk, Tetyana"]
[Black "Romaniv, Mykola"]
[Result "1/2-1/2"]
[ECO "D46"]
[WhiteElo "1929"]
[BlackElo "1773"]
[Annotator "NA RC"]
[PlyCount "54"]
[EventDate "2024.03.06"]
[EventType "swiss"]
[EventCountry "UKR"]
[SourceTitle "playchess.com"]
[Source "ChessBase"]
[SourceQuality "1"]
[TimeControl "600+5"]

1. d4 {[%emt 0:00:02]} Nf6 {[%emt 0:00:01]} 2. c4 {[%emt 0:00:02]} e6 {[%emt 0:00:01]} 3. Nf3 {[%emt 0:00:01]} d5 {[%emt 0:00:02]} 4. Nc3 {[%emt 0:00:01]} c6 {[%emt 0:00:01]} 5. e3 {[%emt 0:00:03]} Nbd7 {[%emt 0:00:01]} 6. Bd3 {[%emt 0:00:09]} Bd6 {[%emt 0:00:17]} 7. O-O {[%emt 0:00:03]} h6 {[%emt 0:00:10]} 8. e4 {[%emt 0:00:21]} dxe4 {[%emt 0:00:32]} 9. Nxe4 {[%emt 0:00:02]} Nxe4 {[%emt 0:00:02]} 10. Bxe4 {[%emt 0:00:02]} Nf6 {[%emt 0:00:05]} 11. Bc2 {[%emt 0:00:02]} b6 {[%emt 0:00:40]} 12. b3 {[%emt 0:01:27]} Bb7 {[%emt 0:00:02]} 13. Bb2 {[%emt 0:00:49]} b5 {[%emt 0:00:34]} 14. Re1 {[%emt 0:00:52]} Qc7 {[%emt 0:00:29]} 15. Qd3 {[%emt 0:01:17]} bxc4 {[%emt 0:00:59]} 16. bxc4 {[%emt 0:00:02]} O-O-O {[%emt 0:00:06]} 17. Rab1 {[%emt 0:00:44]} c5 {[%emt 0:00:08]} 18. h3 {[%emt 0:00:52]} Nh5 {[%emt 0:00:56]} 19. d5 {[%emt 0:00:45]} exd5 {[%emt 0:00:21]} 20. Qf5+ {[%emt 0:00:01]} Kb8 {[%emt 0:00:09]} 21. Qxh5 {[%emt 0:00:02]} d4 {[%emt 0:00:16]} 22. Bxd4 {[%emt 0:00:25]} cxd4 {[%emt 0:00:14]} 23. Be4 {[%emt 0:00:01]} Qxc4 {[%emt 0:00:22]} 24. Bxb7 {[%emt 0:00:10]} Bb4 {[%emt 0:00:19]} 25. Rec1 {[%emt 0:00:02]} Qxc1+ {[%emt 0:00:30]} 26. Rxc1 {[%emt 0:00:01]} Kxb7 {[%emt 0:00:02]} 27. Qb5+ {[%emt 0:00:03]} Ka8 {[%emt 0:00:02]} 1/2-1/2

[Event "Memorial Ukrainian Chess Warriors 2024"]
[Site "Lviv"]
[Date "2024.03.15"]
[Round "6.26"]
[White "Shton, Roman"]
[Black "Popov, Sergey A."]
[Result "1-0"]
[ECO "A46"]
[WhiteElo "2002"]
[BlackElo "1923"]
[Annotator "NA RC"]
[PlyCount "61"]
[EventDate "2024.03.06"]
[EventType "swiss"]
[EventCountry "UKR"]
[SourceTitle "playchess.com"]
[Source "ChessBase"]
[SourceQuality "1"]
[TimeControl "600+5"]

1. d4 {[%emt 0:00:01]} Nf6 {[%emt 0:00:04]} 2. Nf3 {[%emt 0:00:02]} d6 {[%emt 0:00:02]} 3. c4 {[%emt 0:00:03]} c6 {[%emt 0:00:03]} 4. Nc3 {[%emt 0:00:01]} g6 {[%emt 0:00:13]} 5. Bg5 {[%emt 0:00:02]} Bg7 {[%emt 0:00:03]} 6. e3 {[%emt 0:00:01]} O-O {[%emt 0:00:17]} 7. Be2 {[%emt 0:00:02]} Nbd7 {[%emt 0:00:14]} 8. O-O {[%emt 0:00:03]} Qc7 {[%emt 0:00:11]} 9. Qc2 {[%emt 0:00:09]} h6 {[%emt 0:00:52]} 10. Bh4 {[%emt 0:00:01]} Re8 {[%emt 0:00:24]} 11. Rfe1 {[%emt 0:00:06]} a5 {[%emt 0:01:41]} 12. h3 {[%emt 0:00:06]} b6 {[%emt 0:01:15]} 13. a3 {[%emt 0:00:10]} Bb7 {[%emt 0:00:11]} 14. Bg3 {[%emt 0:00:09]} Nh5 {[%emt 0:00:44]} 15. Bh2 {[%emt 0:00:03]} Rac8 {[%emt 0:00:41]} 16. b4 {[%emt 0:00:06]} e5 {[%emt 0:00:22]} 17. bxa5 {[%emt 0:00:14]} bxa5 {[%emt 0:00:04]} 18. Rab1 {[%emt 0:00:16]} f5 {[%emt 0:01:10]} 19. g4 {[%emt 0:00:11]} fxg4 {[%emt 0:00:38]} 20. hxg4 {[%emt 0:00:01]} Nhf6 {[%emt 0:00:03]} 21. c5 {[%emt 0:00:40]} dxc5 {[%emt 0:00:30]} 22. Qb3+ {[%emt 0:00:03]} Kh8 {[%emt 0:00:08]} 23. Qxb7 {[%emt 0:00:01]} cxd4 {[%emt 0:00:26]} 24. Qxc7 {[%emt 0:00:09]} Rxc7 {[%emt 0:00:02]} 25. exd4 {[%emt 0:00:02]} Nxg4 {[%emt 0:00:15]} 26. Bg3 {[%emt 0:00:48]} Ra7 {[%emt 0:00:15]} 27. Nh4 {[%emt 0:00:13]} exd4 {[%emt 0:00:21]} 28. Bxg4 {[%emt 0:00:06]} Rxe1+ {[%emt 0:00:07]} 29. Rxe1 {[%emt 0:00:01]} dxc3 {[%emt 0:00:09]} 30. Nxg6+ {[%emt 0:00:04]} Kg8 {[%emt 0:01:04]} 31. Ne7+ {[%emt 0:00:01]} 1-0

[Event "Memorial Ukrainian Chess Warriors 2024"]
[Site "Lviv"]
[Date "2024.03.15"]
[Round "6.27"]
[White "Masnyak, Yuriy"]
[Black "Ivanytska, Liudmyla"]
[Result "1/2-1/2"]
[ECO "B27"]
[WhiteElo "1785"]
[BlackElo "1994"]
[Annotator "NA RC"]
[PlyCount "61"]
[EventDate "2024.03.06"]
[EventType "swiss"]
[EventCountry "UKR"]
[SourceTitle "playchess.com"]
[Source "ChessBase"]
[SourceQuality "1"]
[TimeControl "600+5"]

1. e4 {[%emt 0:00:02]} c5 {[%emt 0:00:02]} 2. Nf3 {[%emt 0:00:01]} g6 {[%emt 0:00:02]} 3. d4 {[%emt 0:00:03]} cxd4 {[%emt 0:00:01]} 4. Nxd4 {[%emt 0:00:01]} Bg7 {[%emt 0:00:01]} 5. c4 {[%emt 0:00:15]} Nf6 {[%emt 0:00:05]} 6. Nc3 {[%emt 0:00:00]} Nc6 {[%emt 0:00:11]} 7. Be2 {[%emt 0:00:07]} O-O {[%emt 0:00:18]} 8. Be3 {[%emt 0:00:01]} d6 {[%emt 0:00:02]} 9. O-O {[%emt 0:00:08]} Nxd4 {[%emt 0:00:02]} 10. Bxd4 {[%emt 0:00:01]} Be6 {[%emt 0:00:01]} 11. b3 {[%emt 0:00:11]} Qa5 {[%emt 0:00:12]} 12. Rc1 {[%emt 0:00:16]} Rac8 {[%emt 0:00:13]} 13. f4 {[%emt 0:00:07]} Rfd8 {[%emt 0:00:08]} 14. Kh1 {[%emt 0:00:26]} Ne8 {[%emt 0:01:03]} 15. f5 {[%emt 0:00:26]} Bd7 {[%emt 0:00:01]} 16. Nd5 {[%emt 0:00:24]} Bf8 {[%emt 0:00:03]} 17. f6 {[%emt 0:00:35]} exf6 {[%emt 0:00:50]} 18. Bxf6 {[%emt 0:00:02]} Nxf6 {[%emt 0:00:07]} 19. Nxf6+ {[%emt 0:00:01]} Kh8 {[%emt 0:00:03]} 20. Nxd7 {[%emt 0:00:02]} Rxd7 {[%emt 0:00:01]} 21. Bg4 {[%emt 0:00:01]} Rcd8 {[%emt 0:00:23]} 22. Bxd7 {[%emt 0:00:03]} Rxd7 {[%emt 0:00:01]} 23. Qd5 {[%emt 0:00:19]} Qc7 {[%emt 0:00:04]} 24. Rcd1 {[%emt 0:00:16]} Qd8 {[%emt 0:01:16]} 25. Rxf7 {[%emt 0:00:27]} Rxf7 {[%emt 0:00:15]} 26. Qxf7 {[%emt 0:00:02]} Qb8 {[%emt 0:00:24]} 27. e5 {[%emt 0:00:16]} b6 {[%emt 0:00:20]} 28. exd6 {[%emt 0:00:10]} Qd8 {[%emt 0:00:22]} 29. d7 {[%emt 0:00:04]} Be7 {[%emt 0:00:02]} 30. Re1 {[%emt 0:00:10]} Qxd7 {[%emt 0:00:02]} 31. Qxe7 {[%emt 0:00:02]} 1/2-1/2

[Event "Memorial Ukrainian Chess Warriors 2024"]
[Site "Lviv"]
[Date "2024.03.15"]
[Round "7.1"]
[White "Dubnevych, Maksym"]
[Black "Kislinsky, Alexey"]
[Result "0-1"]
[ECO "C26"]
[WhiteElo "2293"]
[BlackElo "2361"]
[Annotator "TA"]
[PlyCount "44"]
[EventDate "2024.03.06"]
[EventType "swiss"]
[EventCountry "UKR"]
[SourceTitle "playchess.com"]
[Source "ChessBase"]
[SourceQuality "1"]
[TimeControl "600+5"]

{[%evp 9,44,4,22,0,12,-66,-72,-61,-68,-110,-114,-108,-103,-67,-64,-70,-72,-140,-52,-58,-58,-199,-200,-191,-186,-206,-205,-358,-293,-429,-433,-699,-213,-209,-199,-673,-668]} 1. Nc3 {[%emt 0:00:02]} Nf6 {[%emt 0:00:20]} 2. e4 {[%emt 0:00:01]} e5 {[%emt 0:00:12]} 3. g3 {[%emt 0:00:17]} d5 {[%emt 0:00:09]} 4. exd5 {[%emt 0:00:03]} c6 {[%emt 0:00:01]} 5. dxc6 {[%emt 0:00:05]} Nxc6 {[%emt 0:00:02]} 6. d3 {[%emt 0:00:39]} Bc5 {[%emt 0:00:07]} 7. Bg5 {[%emt 0:00:58]} ({White should try} 7. Bg2 $11) 7... Qb6 $15 {[%emt 0:01:22][%csl LRb2,LRf2]} 8. Qd2 {[%emt 0:01:31] Black is better.} Ng4 {[%emt 0:00:24]} ({Much weaker is} 8... Qxb2 9. Rb1 Qa3 10. Bxf6 gxf6 11. Rb3 $11) 9. Nd1 {[%emt 0:02:31] [#]} Nxf2 $1 {[%emt 0:01:41][%mdl 512] Black has more active pieces.} 10. Nxf2 {[%emt 0:00:10][%cal Of2e4]} h6 {[%emt 0:00:01]} 11. Ne4 {[%emt 0:01:54] aiming for Nxc5.} hxg5 {[%emt 0:00:21]} 12. Nxc5 {[%emt 0:00:07]} Qxc5 {[%emt 0:00:03]} 13. O-O-O {[%emt 0:00:03]} (13. Bg2 $142) 13... f6 {[%emt 0:00:29]} (13... Be6 $17 {Threatens to win with ...0-0-0.} 14. Bg2 Bxa2) 14. Bg2 {[%emt 0:00:45]} Bg4 $36 {[%emt 0:00:41][%mdl 2048] Black has good play.} 15. Bf3 {[%emt 0:00:14] White does not recover from this.} (15. Re1 $15) 15... Bxf3 $19 {[%emt 0:00:02]} 16. Nxf3 {[%emt 0:00:01]} Qd5 {[%emt 0:00:02][%csl LRa2,LRf3]} 17. Qe3 {[%emt 0:01:14]} Qxa2 {[%emt 0:00:10] Strongly threatening ...g4.} 18. Kd2 $2 {[%emt 0:00:39] [#]} (18. Qe4 {is a better defense.}) 18... O-O-O {[%emt 0:00:34][%cal Og5g4] White must now prevent ...g4!} (18... Qxb2 $2 19. Rb1 Qa3 20. Rxb7 $19) 19. Ra1 {[%emt 0:00:05]} (19. Qe4 {was called for.}) 19... Qd5 {[%emt 0:00:02]} (19... Qxb2 $2 {perishes.} 20. Rhb1 $18) 20. c3 {[%emt 0:00:20]} (20. Rhe1 $142 g4 21. Nh4) 20... a6 $2 {[%emt 0:01:23]} (20... e4 21. Nd4 Nxd4 22. cxd4 exd3 (22... Qxd4 $2 23. Qxd4 Rxd4 24. Ke3 $19) 23. Qxd3 Kb8 (23... Qxd4 $2 24. Qxd4 Rxd4+ 25. Kc3 $19)) 21. Kc2 {[%emt 0:00:04]} Rd7 {[%emt 0:00:29]} 22. Ra3 $2 {[%emt 0:00:05]} (22. Qe4) 22... g4 {[%emt 0:00:04] Weighted Error Value: White=0.97/Black=0.49.  Mistake:       	White=7     	Black=2      Inaccurate:     	White=1     	---        OK:         	White=3     	Black=6      Best:        	White=1     	Black=4} 0-1

[Event "Memorial Ukrainian Chess Warriors 2024"]
[Site "Lviv"]
[Date "2024.03.15"]
[Round "7.2"]
[White "Pavlov, Sergey"]
[Black "Sakun, Volodymyr"]
[Result "1/2-1/2"]
[ECO "A13"]
[WhiteElo "2451"]
[BlackElo "2301"]
[Annotator "TA"]
[PlyCount "62"]
[EventDate "2024.03.06"]
[EventType "swiss"]
[EventCountry "UKR"]
[SourceTitle "playchess.com"]
[Source "ChessBase"]
[SourceQuality "1"]
[TimeControl "600+5"]

{[%evp 15,62,-10,-12,-29,17,31,36,17,37,9,10,-20,11,13,11,13,11,14,18,6,15,-14,-16,-31,25,16,87,0,0,0,0,0,0,11,10,0,0,0,0,0,0,0,0,0,0,0,0,0,0]} 1. c4 e6 2. g3 d5 3. Bg2 Nf6 4. Nf3 Be7 5. d4 O-O 6. Nc3 dxc4 7. O-O Nc6 8. e3 Rb8 9. Qa4 Bd6 (9... Nb4 $142) 10. Qxc4 $11 e5 11. d5 {White is slightly better.} Ne7 12. Ng5 a6 {[%cal Ba7a6,Ba6b5][%mdl 32]} 13. a4 Bd7 (13... c6 {seems wilder.} 14. dxc6 Nxc6 15. Rd1 Bg4) 14. Rd1 b5 15. axb5 axb5 16. Qb3 Bg4 17. f3 Bf5 18. e4 Bd7 19. Be3 h6 (19... Qc8 $1 $15 20. f4 Ng4) 20. Nh3 Nh7 (20... h5 $11) 21. f4 {White is more active.} ({White should play} 21. Nf2 $16) 21... Bxh3 {The position is equal.} 22. Bxh3 exf4 23. gxf4 {[%cal Oe4e5] [#] Hoping for e5!} Ng6 {White must now prevent ...Qh4.} 24. e5 {[%cal Be4e5,Be5d6][%mdl 32]} (24. Nxb5 $2 Nxf4 25. Bf1 Qg5+ 26. Kh1 Qh5 $19) 24... Qh4 $1 {[%csl LRf4,LRh3]} 25. Bg2 Nxf4 $1 26. exd6 Nxg2 27. Kxg2 {[#] Strongly threatening Rd4.} ({Not} 27. Bf2 $2 Qg4 28. Rd4 (28. Nxb5 $2 {is the wrong capture.} Ne3+ 29. Bg3 Qf3 $19) 28... Nf4+ 29. Bg3 Nh3+ 30. Kg2 Qxd4 $19) 27... Qg4+ 28. Kf2 Qh4+ 29. Kg2 {Rd4 would now be deadly.} Qg4+ 30. Kf2 Qh4+ 31. Kg2 {And now Rd4 would win.} Qg4+ {Weighted Error Value: White=0.11 (very precise) /Black=0.12 (very precise) .  Mistake:       	White=1     	Black=3      Inaccurate:     	White=3     	Black=1      OK:         	White=9     	Black=10     Best:        	White=4     	Black=2      Strong:       	---       	Black=2} 1/2-1/2

[Event "Memorial Ukrainian Chess Warriors 2024"]
[Site "Lviv"]
[Date "2024.03.15"]
[Round "7.3"]
[White "Mosesov, Danyil"]
[Black "Dehtiarov, Roman"]
[Result "1-0"]
[ECO "A14"]
[WhiteElo "2453"]
[BlackElo "2319"]
[Annotator "TA"]
[PlyCount "85"]
[EventDate "2024.03.06"]
[EventType "swiss"]
[EventCountry "UKR"]
[SourceTitle "playchess.com"]
[Source "ChessBase"]
[SourceQuality "1"]
[TimeControl "600+5"]

{[%evp 23,85,18,58,48,63,60,55,68,72,58,94,89,91,84,87,69,107,99,92,59,64,64,65,68,82,72,104,114,158,147,359,372,329,364,377,352,369,323,311,330,336,309,656,638,624,622,606,600,817,822,770,627,974,297,829,819,829,820,1058,908,875,860,885,847]} 1. Nf3 {[%emt 0:00:02]} d5 {[%emt 0:00:00]} 2. c4 {[%emt 0:00:00]} e6 {[%emt 0:00:08]} 3. g3 {[%emt 0:00:01]} Nf6 {[%emt 0:00:02]} 4. Bg2 {[%emt 0:00:01]} Be7 {[%emt 0:00:05]} 5. O-O {[%emt 0:00:01]} O-O {[%emt 0:00:06]} 6. b3 {[%emt 0:00:01]} b6 {[%emt 0:00:02]} 7. Bb2 {[%emt 0:00:01]} Bb7 {[%emt 0:00:04]} 8. e3 {[%emt 0:00:02]} c5 {[%emt 0:00:07]} 9. Nc3 {[%emt 0:00:01]} Nc6 {[%emt 0:00:11]} 10. cxd5 {[%emt 0:00:01]} Nxd5 {[%emt 0:00:50]} 11. Nxd5 {[%emt 0:00:02]} exd5 {[%emt 0:00:16]} 12. d4 {[%emt 0:00:01]} Bf6 {[%emt 0:00:09]} 13. Qd2 {[%emt 0:00:26]} Rc8 {[%emt 0:00:19]} 14. dxc5 {[%emt 0:00:39]} Bxb2 {[%emt 0:00:02]} 15. Qxb2 {[%emt 0:00:01] White is slightly better.} bxc5 {[%emt 0:00:01]} 16. Rfd1 {[%emt 0:00:05]} Ne7 {[%emt 0:01:00]} 17. Ne5 {[%emt 0:01:37][%cal Bf3e5,Be5d3,Bd3f4][%mdl 32]} Qd6 {[%emt 0:01:42]} 18. Rac1 {[%emt 0:00:13]} Rfd8 {[%emt 0:00:09]} 19. h4 {[%emt 0:00:29]} Ba8 {[%emt 0:00:30]} 20. Nd3 {[%emt 0:00:34]} h6 {[%emt 0:00:54]} 21. Qa3 {[%emt 0:00:35]} c4 {[%emt 0:01:55]} 22. Qxd6 {[%emt 0:00:01]} (22. Qxa7 cxd3 23. Rxc8 Rxc8 $17) 22... Rxd6 {[%emt 0:00:02]} 23. Nf4 {[%emt 0:00:18] And now bxc4 would win.} cxb3 {[%emt 0:00:28]} 24. axb3 {[%emt 0:00:05]} Rb8 {[%emt 0:00:38][%cal Og7g5]} 25. Rc7 $36 {[%emt 0:00:21][%csl LRa7,LRe7][%mdl 2048] White is really pushing.} Rb7 {[%emt 0:00:08]} 26. Rdc1 {[%emt 0:00:08] aiming for Rxb7. White has more active pieces.} ({Don't take} 26. Nxd5 $6 Rxc7 27. Nxe7+ Rxe7 $14) 26... Rd7 $2 {[%emt 0:01:47] [#] This costs Black the game.} (26... g5 $16) 27. Rc8+ $1 $18 {[%emt 0:00:03][%mdl 512]} Nxc8 {[%emt 0:00:01]} 28. Rxc8+ {[%emt 0:00:01]} Kh7 {[%emt 0:00:01]} 29. Rxa8 {[%emt 0:00:01]} Rxb3 {[%emt 0:00:05]} 30. Bxd5 {[%emt 0:00:05]} Rb4 {[%emt 0:00:09]} 31. e4 {[%emt 0:00:14]} g6 {[%emt 0:00:27]} 32. Kg2 {[%emt 0:00:07]} h5 $2 {[%emt 0:00:05] [#]} (32... Rd4 33. g4 Rd2) 33. Nd3 {[%emt 0:00:13]} Rd4 {[%emt 0:00:20]} 34. Ne5 {[%emt 0:00:04][%csl LRd7,LRf7]} Rc7 {[%emt 0:00:03]} 35. Bxf7 {[%emt 0:00:58]} Kg7 {[%emt 0:00:08]} 36. Bd5 {[%emt 0:00:08]} Rd2 {[%emt 0:00:03]} 37. Nc6 {[%emt 0:00:18]} Rc2 {[%emt 0:00:06]} 38. Nxa7 {[%emt 0:00:16]} (38. Nd4) 38... R7c3 $2 {[%emt 0:00:06]} (38... R2c5 39. Nc6 R7xc6) 39. Nb5 {[%emt 0:00:09] White is clearly winning.} Rd3 {[%emt 0:00:01]} 40. Ra7+ {[%emt 0:00:03]} Kh8 {[%emt 0:00:04]} 41. Nd6 {[%emt 0:00:11]} Rdd2 {[%emt 0:00:02]} 42. Nf7+ {[%emt 0:00:05]} Kg8 {[%emt 0:00:01]} 43. Ne5+ {[%emt 0:00:20] Weighted Error Value: White=0.37/Black=0.48.  Loses game:     	---       	Black=1      Mistake:       	---       	Black=1      Inaccurate:     	White=1     	Black=4      OK:         	White=9     	Black=7      Best:        	White=2     	Black=5      Brilliant:      	White=1     	---} 1-0